[Event "November 21 Early 2023"]
[Site "https://www.chess.com"]
[Date "2023.11.21"]
[Round "2"]
[White "Lund, Gunnar"]
[Black "Skvortsov, Andrei"]
[Result "0-1"]
[Board "83"]
[TimeControl "180+1"]
[WhiteFideId "1520814"]
[BlackFideId "24108600"]
[WhiteElo "2233"]
[BlackElo "2357"]
[WhiteTeam "NOR"]
[BlackTeam "MNE"]
[WhiteClock "0:00:00"]
[BlackClock "0:00:10"]

1. d4 {[%clk 0:03:00]}  g6 {[%clk 0:02:56]} 2. Nf3 {[%clk 0:03:00]}  Bg7 {[%clk 0:02:56]} 3. g3 {[%clk 0:03:00]}  d5 {[%clk 0:02:55]} 4. Bg2 {[%clk 0:03:00]}  e6 {[%clk 0:02:55]} 5. O-O {[%clk 0:03:01]}  Ne7 {[%clk 0:02:55]} 6. c4 {[%clk 0:03:01]}  O-O {[%clk 0:02:56]} 7. Nc3 {[%clk 0:03:01]}  dxc4 {[%clk 0:02:55]} 8. e4 {[%clk 0:03:02]}  Nbc6 {[%clk 0:02:51]} 9. Be3 {[%clk 0:03:01]}  a6 {[%clk 0:02:51]} 10. a4 {[%clk 0:03:01]}  Na5 {[%clk 0:02:50]} 11. Qe2 {[%clk 0:03:01]}  Rb8 {[%clk 0:02:50]} 12. Rfd1 {[%clk 0:02:54]}  c6 {[%clk 0:02:49]} 13. h4 {[%clk 0:02:50]}  Nb3 {[%clk 0:02:45]} 14. Rab1 {[%clk 0:02:50]}  b5 {[%clk 0:02:46]} 15. h5 {[%clk 0:02:48]}  a5 {[%clk 0:02:42]} 16. axb5 {[%clk 0:02:47]}  cxb5 {[%clk 0:02:41]} 17. d5 {[%clk 0:02:45]}  exd5 {[%clk 0:02:41]} 18. Nxd5 {[%clk 0:02:44]}  Nxd5 {[%clk 0:02:41]} 19. Rxd5 {[%clk 0:02:45]}  Qe7 {[%clk 0:02:39]} 20. h6 {[%clk 0:02:42]}  Bh8 {[%clk 0:02:30]} 21. Bg5 {[%clk 0:02:42]}  Bf6 {[%clk 0:02:24]} 22. Bf4 {[%clk 0:02:33]}  Rb6 {[%clk 0:02:16]} 23. Rbd1 {[%clk 0:02:32]}  Re8 {[%clk 0:02:06]} 24. e5 {[%clk 0:02:21]}  Bh8 {[%clk 0:01:51]} 25. Bg5 {[%clk 0:02:16]}  Qf8 {[%clk 0:01:51]} 26. Rd8 {[%clk 0:02:12]}  Rbe6 {[%clk 0:01:48]} 27. Rxe8 {[%clk 0:01:08]}  Rxe8 {[%clk 0:01:47]} 28. Qe4 {[%clk 0:01:08]}  f6 {[%clk 0:01:38]} 29. Bf4 {[%clk 0:01:07]}  Be6 {[%clk 0:01:29]} 30. Qc6 {[%clk 0:01:04]}  g5 {[%clk 0:01:28]} 31. Bxg5 {[%clk 0:00:55]}  fxg5 {[%clk 0:00:58]} 32. Nxg5 {[%clk 0:00:56]}  Nc5 {[%clk 0:00:46]} 33. Nxe6 {[%clk 0:00:32]}  Nxe6 {[%clk 0:00:41]} 34. Bd5 {[%clk 0:00:32]}  Qf7 {[%clk 0:00:35]} 35. Qxb5 {[%clk 0:00:15]}  Bxe5 {[%clk 0:00:31]} 36. Re1 {[%clk 0:00:14]}  Bd4 {[%clk 0:00:27]} 37. Qxe8+ {[%clk 0:00:11]}  Qxe8 {[%clk 0:00:26]} 38. Rxe6 {[%clk 0:00:12]}  Kf8 {[%clk 0:00:11]} 39. Rxe8+ {[%clk 0:00:07]}  Kxe8 {[%clk 0:00:11]} 40. Bxc4 {[%clk 0:00:08]}  Bxb2 {[%clk 0:00:11]} 41. Bg8 {[%clk 0:00:08]}  a4 {[%clk 0:00:10]} 42. Bxh7 {[%clk 0:00:08]}  Bc1 {[%clk 0:00:10]} 43. f4 {[%clk 0:00:08]}  Kf7 {[%clk 0:00:09]} 44. Bb1 {[%clk 0:00:07]}  a3 {[%clk 0:00:10]} 45. Kg2 {[%clk 0:00:07]}  Bb2 {[%clk 0:00:10]} 46. Kh3 {[%clk 0:00:07]}  Kf6 {[%clk 0:00:09]} 47. Kg4 {[%clk 0:00:06]}  Bd4 {[%clk 0:00:10]} 48. Kh5 {[%clk 0:00:05]}  Be3 {[%clk 0:00:10]} 49. Ba2 {[%clk 0:00:00]}  Bc1 {[%clk 0:00:10]} 0-1

[Event "November 21 Early 2023"]
[Site "https://www.chess.com"]
[Date "2023.11.21"]
[Round "2"]
[White "Arifarsky"]
[Black "Osmak, Yuliia"]
[Result "1-0"]
[Board "84"]
[TimeControl "180+1"]
[BlackFideId "14101602"]
[WhiteElo "2775"]
[BlackElo "2303"]
[BlackTeam "UKR"]
[WhiteClock "0:00:08"]
[BlackClock "0:00:00"]

1. Nf3 {[%clk 0:02:58]}  d5 {[%clk 0:02:56]} 2. e3 {[%clk 0:02:56]}  Nf6 {[%clk 0:02:55]} 3. b4 {[%clk 0:02:55]}  e6 {[%clk 0:02:45]} 4. a3 {[%clk 0:02:54]}  Bd6 {[%clk 0:02:40]} 5. Bb2 {[%clk 0:02:51]}  O-O {[%clk 0:02:39]} 6. c4 {[%clk 0:02:50]}  b6 {[%clk 0:02:37]} 7. Nc3 {[%clk 0:02:51]}  Bb7 {[%clk 0:02:35]} 8. Rc1 {[%clk 0:02:47]}  a5 {[%clk 0:02:29]} 9. b5 {[%clk 0:02:31]}  Qe7 {[%clk 0:02:25]} 10. a4 {[%clk 0:02:25]}  Nbd7 {[%clk 0:02:20]} 11. cxd5 {[%clk 0:02:17]}  exd5 {[%clk 0:02:05]} 12. Nd4 {[%clk 0:02:07]}  Be5 {[%clk 0:01:51]} 13. Nc6 {[%clk 0:01:48]}  Bxc6 {[%clk 0:01:45]} 14. bxc6 {[%clk 0:01:49]}  Nb8 {[%clk 0:01:37]} 15. d4 {[%clk 0:01:45]}  Bd6 {[%clk 0:01:36]} 16. Bb5 {[%clk 0:01:44]}  Na6 {[%clk 0:01:32]} 17. Bxa6 {[%clk 0:01:31]}  Rxa6 {[%clk 0:01:32]} 18. O-O {[%clk 0:01:32]}  Raa8 {[%clk 0:01:26]} 19. Qf3 {[%clk 0:01:28]}  Rad8 {[%clk 0:01:20]} 20. g3 {[%clk 0:01:28]}  Bb4 {[%clk 0:01:12]} 21. Nb5 {[%clk 0:01:17]}  Ne4 {[%clk 0:01:11]} 22. Rfd1 {[%clk 0:01:14]}  Nd2 {[%clk 0:01:04]} 23. Qf4 {[%clk 0:00:58]}  Nc4 {[%clk 0:01:03]} 24. Bc3 {[%clk 0:00:52]}  Bd6 {[%clk 0:01:01]} 25. Qf3 {[%clk 0:00:51]}  Qe6 {[%clk 0:00:53]} 26. Re1 {[%clk 0:00:40]}  Rfe8 {[%clk 0:00:50]} 27. Kg2 {[%clk 0:00:34]}  f5 {[%clk 0:00:33]} 28. Re2 {[%clk 0:00:29]}  g6 {[%clk 0:00:32]} 29. h4 {[%clk 0:00:28]}  Qe4 {[%clk 0:00:26]} 30. Rh1 {[%clk 0:00:18]}  Re7 {[%clk 0:00:19]} 31. Be1 {[%clk 0:00:15]}  Bb4 {[%clk 0:00:15]} 32. Bxb4 {[%clk 0:00:11]}  axb4 {[%clk 0:00:16]} 33. Qxe4 {[%clk 0:00:09]}  fxe4 {[%clk 0:00:14]} 34. Rb1 {[%clk 0:00:10]}  Rf8 {[%clk 0:00:03]} 35. Rxb4 {[%clk 0:00:08]}  Rf6 {[%clk 0:00:04]} 36. Nc3 {[%clk 0:00:08]}  Rd6 {[%clk 0:00:00]} 37. Nxd5 {[%clk 0:00:08]} 1-0

[Event "November 21 Early 2023"]
[Site "https://www.chess.com"]
[Date "2023.11.21"]
[Round "2"]
[White "Nikologorsky, Matfei"]
[Black "Samunenkov, Ihor"]
[Result "1-0"]
[Board "85"]
[TimeControl "180+1"]
[WhiteFideId "24102474"]
[BlackFideId "14187086"]
[WhiteElo "2153"]
[BlackElo "2473"]
[WhiteTeam "FID"]
[BlackTeam "UKR"]
[WhiteClock "0:00:08"]
[BlackClock "0:00:01"]

1. e4 {[%clk 0:03:00]}  c5 {[%clk 0:02:58]} 2. Nf3 {[%clk 0:03:00]}  Nc6 {[%clk 0:02:57]} 3. d4 {[%clk 0:03:01]}  cxd4 {[%clk 0:02:57]} 4. Nxd4 {[%clk 0:03:02]}  Nf6 {[%clk 0:02:57]} 5. Nc3 {[%clk 0:03:02]}  e5 {[%clk 0:02:58]} 6. Ndb5 {[%clk 0:03:02]}  d6 {[%clk 0:02:58]} 7. Bg5 {[%clk 0:03:02]}  a6 {[%clk 0:02:57]} 8. Bxf6 {[%clk 0:03:02]}  gxf6 {[%clk 0:02:57]} 9. Na3 {[%clk 0:03:03]}  b5 {[%clk 0:02:56]} 10. Nd5 {[%clk 0:03:03]}  f5 {[%clk 0:02:57]} 11. g3 {[%clk 0:03:02]}  fxe4 {[%clk 0:02:41]} 12. Bg2 {[%clk 0:03:01]}  Be6 {[%clk 0:02:40]} 13. Bxe4 {[%clk 0:02:59]}  Rc8 {[%clk 0:02:40]} 14. c3 {[%clk 0:02:58]}  Bg7 {[%clk 0:02:39]} 15. Nc2 {[%clk 0:02:53]}  O-O {[%clk 0:02:32]} 16. Bg2 {[%clk 0:02:33]}  f5 {[%clk 0:02:28]} 17. a4 {[%clk 0:02:31]}  Kh8 {[%clk 0:01:56]} 18. axb5 {[%clk 0:02:29]}  axb5 {[%clk 0:01:57]} 19. O-O {[%clk 0:02:22]}  f4 {[%clk 0:01:54]} 20. Ra6 {[%clk 0:02:03]}  Nb8 {[%clk 0:01:43]} 21. Ra7 {[%clk 0:01:56]}  Rc5 {[%clk 0:01:41]} 22. Ncb4 {[%clk 0:01:34]}  Nd7 {[%clk 0:01:35]} 23. gxf4 {[%clk 0:01:12]}  exf4 {[%clk 0:01:31]} 24. Nxf4 {[%clk 0:01:12]}  Rxf4 {[%clk 0:00:38]} 25. Qxd6 {[%clk 0:01:11]}  Rg4 {[%clk 0:00:30]} 26. Qxe6 {[%clk 0:00:28]}  Rcg5 {[%clk 0:00:30]} 27. Rxd7 {[%clk 0:00:23]}  Rxg2+ {[%clk 0:00:30]} 28. Kh1 {[%clk 0:00:23]}  Qf8 {[%clk 0:00:28]} 29. Rf7 {[%clk 0:00:14]}  Qa8 {[%clk 0:00:16]} 30. Qc6 {[%clk 0:00:14]}  Qb8 {[%clk 0:00:15]} 31. Qxg2 {[%clk 0:00:13]}  Rxg2 {[%clk 0:00:14]} 32. Kxg2 {[%clk 0:00:14]}  h6 {[%clk 0:00:09]} 33. Re1 {[%clk 0:00:13]}  Qa8+ {[%clk 0:00:09]} 34. Rf3 {[%clk 0:00:11]}  Qb7 {[%clk 0:00:07]} 35. Re6 {[%clk 0:00:10]}  Kh7 {[%clk 0:00:07]} 36. Kg3 {[%clk 0:00:08]}  Qc7+ {[%clk 0:00:05]} 37. Kg2 {[%clk 0:00:08]}  Qc4 {[%clk 0:00:04]} 38. Ree3 {[%clk 0:00:07]}  Qg4+ {[%clk 0:00:03]} 39. Rg3 {[%clk 0:00:07]}  Qf5 {[%clk 0:00:02]} 40. Re7 {[%clk 0:00:06]}  h5 {[%clk 0:00:02]} 41. Rgxg7+ {[%clk 0:00:07]}  Kh8 {[%clk 0:00:01]} 42. Rh7+ {[%clk 0:00:07]}  Kg8 {[%clk 0:00:02]} 43. Reg7+ {[%clk 0:00:07]}  Kf8 {[%clk 0:00:01]} 44. Rf7+ {[%clk 0:00:08]} 1-0

[Event "November 21 Early 2023"]
[Site "https://www.chess.com"]
[Date "2023.11.21"]
[Round "2"]
[White "Mazurkiewicz, Michal"]
[Black "Parligras, Mircea-Emilian"]
[Result "0-1"]
[Board "87"]
[TimeControl "180+1"]
[WhiteFideId "1124943"]
[BlackFideId "1204297"]
[WhiteElo "2124"]
[BlackElo "2486"]
[WhiteTeam "POL"]
[BlackTeam "ROU"]
[WhiteClock "0:00:00"]
[BlackClock "0:00:06"]

1. e4 {[%clk 0:03:00]}  c5 {[%clk 0:02:59]} 2. Nf3 {[%clk 0:03:00]}  d6 {[%clk 0:02:59]} 3. g3 {[%clk 0:03:00]}  Nf6 {[%clk 0:02:57]} 4. d3 {[%clk 0:03:01]}  Nc6 {[%clk 0:02:56]} 5. Bg2 {[%clk 0:03:01]}  g6 {[%clk 0:02:56]} 6. O-O {[%clk 0:03:01]}  Bg7 {[%clk 0:02:56]} 7. Re1 {[%clk 0:03:02]}  O-O {[%clk 0:02:55]} 8. e5 {[%clk 0:03:02]}  Ng4 {[%clk 0:02:43]} 9. exd6 {[%clk 0:03:02]}  Qxd6 {[%clk 0:02:41]} 10. Nc3 {[%clk 0:02:52]}  Nf6 {[%clk 0:02:16]} 11. Bf4 {[%clk 0:02:49]}  Qd7 {[%clk 0:02:04]} 12. Na4 {[%clk 0:02:27]}  b6 {[%clk 0:01:30]} 13. Ne5 {[%clk 0:02:26]}  Nxe5 {[%clk 0:01:29]} 14. Bxa8 {[%clk 0:02:26]}  Nc6 {[%clk 0:01:29]} 15. Nc3 {[%clk 0:02:12]}  Ba6 {[%clk 0:01:25]} 16. Bxc6 {[%clk 0:02:10]}  Qxc6 {[%clk 0:01:26]} 17. f3 {[%clk 0:01:36]}  e6 {[%clk 0:01:17]} 18. Qe2 {[%clk 0:01:31]}  Bb7 {[%clk 0:01:13]} 19. Be5 {[%clk 0:01:29]}  Rd8 {[%clk 0:01:00]} 20. a4 {[%clk 0:01:21]}  a6 {[%clk 0:00:59]} 21. Kg2 {[%clk 0:01:06]}  b5 {[%clk 0:00:55]} 22. axb5 {[%clk 0:01:05]}  axb5 {[%clk 0:00:56]} 23. Ne4 {[%clk 0:00:08]}  Nxe4 {[%clk 0:00:55]} 24. Bxg7 {[%clk 0:00:08]}  Ng5 {[%clk 0:00:51]} 25. Bf6 {[%clk 0:00:06]}  Nxf3 {[%clk 0:00:50]} 26. Bxd8 {[%clk 0:00:06]}  Nxe1+ {[%clk 0:00:35]} 27. Kf2 {[%clk 0:00:06]}  Nxc2 {[%clk 0:00:30]} 28. Rg1 {[%clk 0:00:05]}  Nd4 {[%clk 0:00:27]} 29. Qe3 {[%clk 0:00:04]}  Nf5 {[%clk 0:00:23]} 30. Qg5 {[%clk 0:00:04]}  Qf3+ {[%clk 0:00:21]} 31. Ke1 {[%clk 0:00:04]}  Nd4 {[%clk 0:00:19]} 32. Qd2 {[%clk 0:00:03]}  Qd5 {[%clk 0:00:16]} 33. Rf1 {[%clk 0:00:02]}  Qxd8 {[%clk 0:00:15]} 34. Qf4 {[%clk 0:00:01]}  Qe7 {[%clk 0:00:10]} 35. Qb8+ {[%clk 0:00:01]}  Kg7 {[%clk 0:00:10]} 36. Qe5+ {[%clk 0:00:02]}  f6 {[%clk 0:00:10]} 37. Qb8 {[%clk 0:00:02]}  e5 {[%clk 0:00:08]} 38. Kd2 {[%clk 0:00:02]}  b4 {[%clk 0:00:07]} 39. Ra1 {[%clk 0:00:00]}  Nc6 {[%clk 0:00:06]} 0-1

[Event "November 21 Early 2023"]
[Site "https://www.chess.com"]
[Date "2023.11.21"]
[Round "2"]
[White "Korchmar, Vasiliy"]
[Black "Weisz, Bryan"]
[Result "1-0"]
[Board "89"]
[TimeControl "180+1"]
[WhiteFideId "24131750"]
[BlackFideId "30934133"]
[WhiteElo "2372"]
[BlackElo "2435"]
[WhiteTeam "RUS"]
[BlackTeam "USA"]
[WhiteClock "0:02:18"]
[BlackClock "0:01:53"]

1. e4 {[%clk 0:03:00]}  c5 {[%clk 0:02:56]} 2. d4 {[%clk 0:03:01]}  cxd4 {[%clk 0:02:56]} 3. Qxd4 {[%clk 0:03:02]}  Nc6 {[%clk 0:02:57]} 4. Qd3 {[%clk 0:03:02]}  d5 {[%clk 0:02:54]} 5. exd5 {[%clk 0:03:00]}  Nb4 {[%clk 0:02:54]} 6. Qb5+ {[%clk 0:03:00]}  Bd7 {[%clk 0:02:37]} 7. Qxb4 {[%clk 0:02:59]}  Nf6 {[%clk 0:02:38]} 8. Nc3 {[%clk 0:02:51]}  Rc8 {[%clk 0:02:32]} 9. Nf3 {[%clk 0:02:46]}  e5 {[%clk 0:02:31]} 10. d6 {[%clk 0:02:35]}  Bc6 {[%clk 0:02:24]} 11. Nxe5 {[%clk 0:02:26]}  Bxd6 {[%clk 0:02:22]} 12. Nxc6 {[%clk 0:02:27]}  Bxb4 {[%clk 0:02:17]} 13. Nxd8 {[%clk 0:02:26]}  Rxc3 {[%clk 0:02:13]} 14. bxc3 {[%clk 0:02:23]}  Bxc3+ {[%clk 0:02:14]} 15. Bd2 {[%clk 0:02:22]}  Bxa1 {[%clk 0:02:11]} 16. Nxb7 {[%clk 0:02:22]}  Ne4 {[%clk 0:02:07]} 17. Bd3 {[%clk 0:02:18]}  O-O {[%clk 0:01:59]} 18. Bxe4 {[%clk 0:02:17]}  Re8 {[%clk 0:02:00]} 19. Nd6 {[%clk 0:02:17]}  Re6 {[%clk 0:01:59]} 20. O-O {[%clk 0:02:17]}  Rxd6 {[%clk 0:01:59]} 21. Rxa1 {[%clk 0:02:17]}  Rxd2 {[%clk 0:01:53]} 22. Bd3 {[%clk 0:02:18]} 1-0

[Event "November 21 Early 2023"]
[Site "https://www.chess.com"]
[Date "2023.11.21"]
[Round "2"]
[White "Csonka, Balazs"]
[Black "Gundam, Rohit"]
[Result "1-0"]
[Board "92"]
[TimeControl "180+1"]
[WhiteFideId "742910"]
[BlackFideId "75002809"]
[WhiteElo "2399"]
[BlackElo "2415"]
[WhiteTeam "HUN"]
[BlackTeam "USA"]
[WhiteClock "0:00:27"]
[BlackClock "0:00:01"]

1. e4 {[%clk 0:03:00]}  e5 {[%clk 0:03:00]} 2. Nf3 {[%clk 0:02:59]}  Nc6 {[%clk 0:03:00]} 3. d4 {[%clk 0:02:58]}  exd4 {[%clk 0:03:01]} 4. Nxd4 {[%clk 0:02:59]}  Nf6 {[%clk 0:03:00]} 5. Nxc6 {[%clk 0:02:59]}  bxc6 {[%clk 0:03:01]} 6. e5 {[%clk 0:03:00]}  Qe7 {[%clk 0:03:00]} 7. Qe2 {[%clk 0:03:00]}  Nd5 {[%clk 0:03:00]} 8. h4 {[%clk 0:03:00]}  f6 {[%clk 0:02:53]} 9. c4 {[%clk 0:02:57]}  Ba6 {[%clk 0:02:43]} 10. Rh3 {[%clk 0:02:55]}  fxe5 {[%clk 0:02:15]} 11. Bg5 {[%clk 0:02:54]}  Nf6 {[%clk 0:01:51]} 12. Re3 {[%clk 0:02:46]}  d6 {[%clk 0:01:27]} 13. g3 {[%clk 0:02:16]}  h6 {[%clk 0:01:14]} 14. Bg2 {[%clk 0:02:03]}  Bb7 {[%clk 0:01:10]} 15. Rb3 {[%clk 0:01:44]}  O-O-O {[%clk 0:01:08]} 16. Bxf6 {[%clk 0:01:28]}  Qxf6 {[%clk 0:01:01]} 17. Nc3 {[%clk 0:01:26]}  d5 {[%clk 0:00:49]} 18. cxd5 {[%clk 0:01:16]}  cxd5 {[%clk 0:00:50]} 19. Qg4+ {[%clk 0:01:06]}  Kb8 {[%clk 0:00:47]} 20. Nxd5 {[%clk 0:01:04]}  Qc6 {[%clk 0:00:36]} 21. Ne3 {[%clk 0:00:53]}  e4 {[%clk 0:00:34]} 22. Bxe4 {[%clk 0:00:47]}  Qb6 {[%clk 0:00:11]} 23. Rxb6 {[%clk 0:00:46]}  axb6 {[%clk 0:00:11]} 24. Bxb7 {[%clk 0:00:45]}  Kxb7 {[%clk 0:00:12]} 25. Rd1 {[%clk 0:00:45]}  Bd6 {[%clk 0:00:10]} 26. Qxg7 {[%clk 0:00:40]}  h5 {[%clk 0:00:10]} 27. Ke2 {[%clk 0:00:38]}  Rhe8 {[%clk 0:00:08]} 28. Qg6 {[%clk 0:00:36]}  Re5 {[%clk 0:00:07]} 29. Rd5 {[%clk 0:00:33]}  Re7 {[%clk 0:00:03]} 30. Qxh5 {[%clk 0:00:32]}  Ra8 {[%clk 0:00:03]} 31. Rxd6 {[%clk 0:00:26]}  cxd6 {[%clk 0:00:02]} 32. Qd5+ {[%clk 0:00:27]}  Kc7 {[%clk 0:00:01]} 33. Qxa8 {[%clk 0:00:27]} 1-0

[Event "November 21 Early 2023"]
[Site "https://www.chess.com"]
[Date "2023.11.21"]
[Round "2"]
[White "NovozhilovSemen"]
[Black "ploxoi"]
[Result "1-0"]
[Board "94"]
[TimeControl "180+1"]
[WhiteElo "2741"]
[BlackElo "2410"]
[WhiteClock "0:00:07"]
[BlackClock "0:00:11"]

1. d4 {[%clk 0:03:00]}  e6 {[%clk 0:02:55]} 2. c4 {[%clk 0:03:00]}  d5 {[%clk 0:02:54]} 3. Nf3 {[%clk 0:02:59]}  c6 {[%clk 0:02:54]} 4. Qc2 {[%clk 0:02:59]}  Nf6 {[%clk 0:02:53]} 5. Nbd2 {[%clk 0:02:59]}  Nbd7 {[%clk 0:02:53]} 6. g3 {[%clk 0:02:59]}  Be7 {[%clk 0:02:52]} 7. Bg2 {[%clk 0:03:00]}  O-O {[%clk 0:02:53]} 8. O-O {[%clk 0:03:00]}  b6 {[%clk 0:02:53]} 9. e4 {[%clk 0:03:01]}  Bb7 {[%clk 0:02:54]} 10. e5 {[%clk 0:02:59]}  Ne8 {[%clk 0:02:52]} 11. cxd5 {[%clk 0:02:59]}  exd5 {[%clk 0:02:53]} 12. Re1 {[%clk 0:02:59]}  Nc7 {[%clk 0:02:52]} 13. Nf1 {[%clk 0:02:59]}  Ne6 {[%clk 0:02:49]} 14. Ne3 {[%clk 0:02:59]}  Re8 {[%clk 0:02:47]} 15. Nf5 {[%clk 0:02:58]}  Bf8 {[%clk 0:02:47]} 16. h4 {[%clk 0:02:57]}  h6 {[%clk 0:02:44]} 17. g4 {[%clk 0:02:48]}  Rc8 {[%clk 0:02:40]} 18. g5 {[%clk 0:02:48]}  h5 {[%clk 0:02:05]} 19. g6 {[%clk 0:02:48]}  fxg6 {[%clk 0:02:06]} 20. Ng3 {[%clk 0:02:48]}  Bb4 {[%clk 0:02:07]} 21. Rd1 {[%clk 0:02:42]}  Ndf8 {[%clk 0:02:07]} 22. Bh3 {[%clk 0:02:30]}  Qd7 {[%clk 0:00:45]} 23. Ng5 {[%clk 0:02:22]}  c5 {[%clk 0:00:38]} 24. Nxe6 {[%clk 0:02:21]}  Nxe6 {[%clk 0:00:39]} 25. Qxg6 {[%clk 0:02:17]}  cxd4 {[%clk 0:00:39]} 26. Nxh5 {[%clk 0:02:14]}  Qf7 {[%clk 0:00:37]} 27. Nf6+ {[%clk 0:02:10]}  Kf8 {[%clk 0:00:36]} 28. Qxf7+ {[%clk 0:01:21]}  Kxf7 {[%clk 0:00:36]} 29. Nxe8 {[%clk 0:01:22]}  Rxe8 {[%clk 0:00:37]} 30. a3 {[%clk 0:01:20]}  Be7 {[%clk 0:00:35]} 31. h5 {[%clk 0:01:19]}  Ba6 {[%clk 0:00:29]} 32. Bg4 {[%clk 0:00:45]}  d3 {[%clk 0:00:28]} 33. Be3 {[%clk 0:00:45]}  Bc4 {[%clk 0:00:24]} 34. f4 {[%clk 0:00:41]}  Bc5 {[%clk 0:00:20]} 35. Kf2 {[%clk 0:00:33]}  Nxf4 {[%clk 0:00:20]} 36. Kf3 {[%clk 0:00:23]}  Ne6 {[%clk 0:00:20]} 37. Rf1 {[%clk 0:00:15]}  Ke7 {[%clk 0:00:20]} 38. Bxc5+ {[%clk 0:00:12]}  bxc5 {[%clk 0:00:20]} 39. Ke3 {[%clk 0:00:13]}  d4+ {[%clk 0:00:19]} 40. Kd2 {[%clk 0:00:13]}  Rb8 {[%clk 0:00:20]} 41. Rab1 {[%clk 0:00:12]}  Ng5 {[%clk 0:00:20]} 42. Bf5 {[%clk 0:00:09]}  Bd5 {[%clk 0:00:18]} 43. Bxd3 {[%clk 0:00:08]}  c4 {[%clk 0:00:18]} 44. Bf5 {[%clk 0:00:08]}  Rb3 {[%clk 0:00:19]} 45. Bg6 {[%clk 0:00:07]}  Nf3+ {[%clk 0:00:19]} 46. Kc2 {[%clk 0:00:08]}  Re3 {[%clk 0:00:19]} 47. e6 {[%clk 0:00:07]}  Kxe6 {[%clk 0:00:17]} 48. Rbd1 {[%clk 0:00:08]}  Ke5 {[%clk 0:00:17]} 49. Kc1 {[%clk 0:00:09]}  a5 {[%clk 0:00:15]} 50. Rf2 {[%clk 0:00:09]}  a4 {[%clk 0:00:15]} 51. Rg2 {[%clk 0:00:10]}  d3 {[%clk 0:00:11]} 52. Rg3 {[%clk 0:00:10]}  Kf4 {[%clk 0:00:11]} 53. Rh3 {[%clk 0:00:10]}  d2+ {[%clk 0:00:11]} 54. Kb1 {[%clk 0:00:10]}  Nd4 {[%clk 0:00:11]} 55. Rh4+ {[%clk 0:00:09]}  Kg5 {[%clk 0:00:11]} 56. Rxd4 {[%clk 0:00:08]}  Bf3 {[%clk 0:00:11]} 57. R1xd2 {[%clk 0:00:09]}  Re1+ {[%clk 0:00:11]} 58. Ka2 {[%clk 0:00:07]}  Bd1 {[%clk 0:00:11]} 1-0

[Event "November 21 Early 2023"]
[Site "https://www.chess.com"]
[Date "2023.11.21"]
[Round "2"]
[White "Komov, Roman"]
[Black "Nguyen, Thi Mai Hung"]
[Result "1-0"]
[Board "96"]
[TimeControl "180+1"]
[WhiteFideId "24175714"]
[BlackFideId "12401676"]
[WhiteElo "2189"]
[BlackElo "2067"]
[WhiteTeam "RUS"]
[BlackTeam "VIE"]
[WhiteClock "0:01:30"]
[BlackClock "0:00:00"]

1. e4 {[%clk 0:03:00]}  e6 {[%clk 0:02:59]} 2. d4 {[%clk 0:03:00]}  d5 {[%clk 0:02:59]} 3. e5 {[%clk 0:03:00]}  c5 {[%clk 0:02:56]} 4. c3 {[%clk 0:03:01]}  Nc6 {[%clk 0:02:51]} 5. Nf3 {[%clk 0:03:01]}  Qb6 {[%clk 0:02:50]} 6. a3 {[%clk 0:03:00]}  c4 {[%clk 0:02:50]} 7. Nbd2 {[%clk 0:03:00]}  Nh6 {[%clk 0:02:48]} 8. b3 {[%clk 0:02:54]}  cxb3 {[%clk 0:02:45]} 9. Nxb3 {[%clk 0:02:55]}  Nf5 {[%clk 0:02:43]} 10. Bd3 {[%clk 0:02:50]}  Na5 {[%clk 0:02:41]} 11. Nxa5 {[%clk 0:02:47]}  Qxa5 {[%clk 0:02:42]} 12. Bd2 {[%clk 0:02:45]}  Qc7 {[%clk 0:02:38]} 13. O-O {[%clk 0:02:42]}  Bd7 {[%clk 0:02:38]} 14. a4 {[%clk 0:02:42]}  Be7 {[%clk 0:02:36]} 15. Qb3 {[%clk 0:02:39]}  O-O {[%clk 0:02:34]} 16. g4 {[%clk 0:02:15]}  Nh4 {[%clk 0:02:32]} 17. Nxh4 {[%clk 0:02:15]}  Bxh4 {[%clk 0:02:33]} 18. f4 {[%clk 0:02:16]}  h6 {[%clk 0:02:06]} 19. Qd1 {[%clk 0:02:12]}  a6 {[%clk 0:01:35]} 20. g5 {[%clk 0:02:10]}  hxg5 {[%clk 0:00:48]} 21. fxg5 {[%clk 0:02:11]}  f5 {[%clk 0:00:36]} 22. exf6 {[%clk 0:02:06]}  Be8 {[%clk 0:00:32]} 23. Qg4 {[%clk 0:02:03]}  Bxg5 {[%clk 0:00:21]} 24. Qxg5 {[%clk 0:01:59]}  Rc8 {[%clk 0:00:15]} 25. fxg7 {[%clk 0:01:49]}  Qxg7 {[%clk 0:00:14]} 26. Qxg7+ {[%clk 0:01:41]}  Kxg7 {[%clk 0:00:15]} 27. Bh6+ {[%clk 0:01:40]}  Kxh6 {[%clk 0:00:14]} 28. Rxf8 {[%clk 0:01:40]}  Rxc3 {[%clk 0:00:10]} 29. Rxe8 {[%clk 0:01:40]}  Rxd3 {[%clk 0:00:10]} 30. Rxe6+ {[%clk 0:01:41]}  Kg5 {[%clk 0:00:11]} 31. Re5+ {[%clk 0:01:39]}  Kg4 {[%clk 0:00:10]} 32. Rxd5 {[%clk 0:01:37]}  Rd2 {[%clk 0:00:09]} 33. Rd7 {[%clk 0:01:35]}  b6 {[%clk 0:00:09]} 34. Rf1 {[%clk 0:01:33]}  b5 {[%clk 0:00:03]} 35. axb5 {[%clk 0:01:33]}  axb5 {[%clk 0:00:04]} 36. Rg7+ {[%clk 0:01:32]}  Kh5 {[%clk 0:00:02]} 37. Rf8 {[%clk 0:01:31]}  Rd1+ {[%clk 0:00:00]} 38. Kf2 {[%clk 0:01:30]} 1-0